bitfinex-derivatives/quotes_ETHF0:USTF0_20250404
["timestamp","ask_amount","ask_price","bid_price","bid_amount"]
[1743730804784,1.4779,1811.2,1811.1,2.55452]
[1743730804989,0.00828798,1811.3,1811.2,1.10465]
[1743730805179,0.00828798,1811.3,1811.2,3.32005]
[1743730805576,1.11287798,1811.3,1811.2,1.10465]
[1743730805783,1.50148798,1811.3,1811.2,1.10465]
[1743730806084,2.60612798,1811.3,1811.2,1.10465]
[1743730806382,1.50148798,1811.3,1811.2,1.10465]
[1743730806783,0.00828798,1811.3,1811.2,2.56925]
[1743730807872,0.00828798,1811.3,1811.2,5.77705]
[1743730808276,1.5112,1811.6,1811.5,1.10447]
[1743730808580,2.5191,1811.7,1811.6,1.10441]
[1743730808780,1.10441,1811.6,1811.5,1.10442]
[1743730809088,1.5112,1811.6,1811.5,2.56902]
[1743730810686,1.5112,1811.6,1811.5,3.29122]
[1743730811184,0.00828798,1811.7,1811.6,1.10441]
[1743730811486,0.00828798,1811.7,1811.6,2.48111]
[1743730812387,1.11263798,1811.7,1811.6,1.10441]
[1743730812586,0.00828798,1811.7,1811.6,2.52711]
[1743730813075,2.57983798,1811.7,1811.6,2.52711]
[1743730813387,1.10441,1811.6,1811.5,1.82664]
[1743730813583,2.57161,1811.6,1811.5,3.24934]
[1743730813883,1.10465,1811.2,1811.1,3.2078]
[1743730814086,1.10465,1811.2,1811.1,1.10472]
[1743730814286,1.10465,1811.2,1810.9,4.18479]
[1743730814486,2.57192,1811.1,1811.0,1.10474]
[1743730814883,2.57192,1811.1,1811.0,2.52744]
[1743730814884,1.4672,1811.1,1811.0,2.52744]
[1743730815787,2.57192,1811.1,1811.0,2.52744]
[1743730816286,1.4672,1811.1,1811.0,2.52744]
[1743730817286,2.60824,1811.3,1811.2,1.10465]
[1743730817488,1.5036,1811.3,1811.2,1.10465]
[1743730817696,4.31238,1811.4,1811.3,1.10459]
[1743730818194,1.10459,1811.3,1811.2,1.82541]
[1743730818391,4.7114,1811.4,1811.2,2.1697]
[1743730818601,5.81596,1811.4,1811.3,1.10459]
[1743730818894,5.81596,1811.4,1811.3,2.50129]
[1743730820290,4.77047,1811.6,1811.4,1.10453]
[1743730820493,6.23847,1811.6,1811.5,1.3967]
[1743730820692,2.57247,1811.6,1811.5,2.50117]
[1743730822498,2.57247,1811.6,1811.5,1.3967]
[1743730822795,2.57247,1811.6,1811.5,2.50117]
[1743730826399,1.10452,1811.5,1811.4,1.10449]
[1743730826699,2.62022,1811.5,1811.4,1.10449]
[1743730828100,1.5157,1811.5,1811.4,1.10449]
[1743730828302,2.62017,1811.5,1811.4,2.53659]
[1743730829199,1.10469,1811.2,1811.0,9.1778]
[1743730829405,2.76134,1811.4,1811.0,9.1778]
[1743730829406,2.76149,1811.3,1811.0,11.71465]
[1743730829701,1.10478,1811.0,1810.8,5.04789]
[1743730829889,1.10478,1811.0,1810.8,6.47999]
[1743730830095,1.10501,1810.7,1810.4,3.665]
[1743730830299,1.10501,1810.7,1810.6,1.4321]
[1743730830502,1.10501,1810.7,1810.6,2.53712]
[1743730831102,1.10495,1810.8,1810.7,1.10496]
[1743730831302,1.11323798,1810.8,1810.7,2.49286]
[1743730831704,1.11318798,1810.8,1810.7,2.49286]
[1743730832500,0.00828798,1810.8,1810.7,2.49286]
[1743730832705,0.00828798,1810.8,1810.7,5.70066]
[1743730836608,1.11318798,1810.8,1810.7,1.3879]
[1743730837116,1.11318798,1810.8,1810.7,1.10496]
[1743730837314,0.00828798,1810.8,1810.7,1.10496]
[1743730842111,1.11318798,1810.8,1810.7,1.10496]
[1743730842517,0.00828798,1810.8,1810.7,1.10496]
[1743730842818,0.00828798,1810.8,1810.7,4.31276]
[1743730843021,0.00828798,1810.8,1810.7,6.81276]
[1743730843923,1.10464,1811.3,1810.9,2.76196]
[1743730844219,1.10465,1811.3,1811.2,1.10465]
[1743730844521,1.10465,1811.2,1811.1,4.31246]
[1743730844822,1.10465,1811.2,1811.1,6.51047]
[1743730845614,2.61242798,1811.3,1811.2,1.10465]
[1743730845914,1.10472,1811.1,1811.0,1.85505]
[1743730846115,1.10472,1811.1,1811.0,1.10475]
[1743730846516,2.60722,1811.1,1811.0,1.10475]
[1743730846715,1.5025,1811.1,1811.0,1.10475]
[1743730847224,2.60722,1811.1,1811.0,1.10475]
[1743730847421,1.5025,1811.1,1810.8,1.5033]
[1743730847618,1.1049,1810.8,1810.7,2.54331]
[1743730848220,1.10496,1810.7,1810.6,5.03706798]
[1743730848425,2.60744,1810.8,1810.7,1.10496]
[1743730848823,1.5025,1810.8,1810.7,1.10496]
[1743730849025,2.6074,1810.8,1810.7,2.54336]
[1743730850028,2.6074,1810.8,1810.7,1.4384]
[1743730850227,2.6074,1810.8,1810.7,2.54336]
[1743730850820,1.5025,1810.8,1810.6,3.21608798]
[1743730851130,2.53496,1810.7,1810.6,0.00828798]
[1743730851717,1.10514,1810.4,1810.3,4.31295]
[1743730851921,1.10514,1810.4,1810.3,3.2078]
[1743730852124,1.10514,1810.4,1810.3,4.313]
[1743730852321,1.10514,1810.4,1810.3,3.2078]
[1743730852527,1.10527,1810.3,1810.2,1.10525]
[1743730852828,1.4275,1810.3,1810.2,1.10525]
[1743730853021,3.666,1810.5,1810.4,1.10514]
[1743730853227,1.10501,1810.7,1810.4,3.2078]
[1743730853427,2.53246,1810.7,1810.6,1.10502]
[1743730853627,4.31269,1810.9,1810.5,5.61867]
[1743730853929,1.4275,1810.9,1810.6,4.6606]
[1743730854126,1.4275,1810.9,1810.8,1.1049]
[1743730854326,1.10479,1811.0,1810.9,1.10484]
[1743730854526,1.10479,1811.0,1810.7,4.21518]
[1743730854828,1.11291798,1811.3,1811.1,1.10466]
[1743730855128,2.54041798,1811.3,1811.2,1.4528]
[1743730856225,1.43578798,1811.3,1810.9,1.10479]
[1743730856528,1.10478,1811.0,1810.9,2.2141]
[1743730856725,0.7139,1811.2,1810.9,3.31894]
[1743730857023,1.10478,1811.0,1810.9,1.10484]
[1743730857332,1.10484,1810.9,1810.8,4.31266]
[1743730857519,1.10484,1810.9,1810.8,5.7854]
[1743730857725,1.1048,1811.0,1810.8,5.7854]
[1743730858032,2.62059,1811.0,1810.8,5.78536]
[1743730858229,2.62059,1811.0,1810.9,1.4727]
[1743730858529,1.10484,1810.9,1810.8,3.2078]
[1743730858823,2.60824,1810.9,1810.8,1.3799]
[1743730859031,1.10496,1810.8,1810.6,1.10501]
[1743730859230,1.10496,1810.7,1810.5,3.93073]
[1743730859634,1.5034,1810.6,1810.5,3.93073]
[1743730859827,2.60842,1810.6,1810.4,1.10511]
[1743730860028,1.5034,1810.6,1810.5,1.10508]
[1743730860529,4.4076,1810.8,1810.3,2.1139]
[1743730860530,4.4076,1810.8,1810.7,1.10496]
[1743730860729,2.60825,1810.9,1810.6,3.2078]
[1743730860931,1.1049,1810.8,1810.7,1.4265]
[1743730861231,1.5034,1810.8,1810.7,2.53146]
[1743730861431,1.10483,1811.0,1810.8,1.1049]
[1743730861631,2.49993,1811.0,1810.7,1.4265]
[1743730861939,1.3951,1811.0,1810.9,1.10484]
[1743730862330,3.666,1811.1,1811.0,1.10478]
[1743730862528,3.666,1811.1,1810.9,1.1048]
[1743730862730,1.10478,1811.0,1810.9,2.5691]
[1743730862931,1.3951,1811.0,1810.9,2.5691]
[1743730863327,1.3951,1811.0,1810.9,1.1048]
[1743730863630,2.49988,1811.0,1810.9,1.1048]
[1743730863831,1.10484,1810.9,1810.8,2.56915]
[1743730864031,2.49994,1810.9,1810.8,2.56915]
[1743730864338,2.49994,1810.9,1810.8,1.4643]
[1743730864534,1.1049,1810.8,1810.7,1.10492]
[1743730864734,1.10496,1810.7,1810.6,1.4039]
[1743730864929,1.10514,1810.4,1810.3,3.2078]
[1743730865134,1.10523,1810.3,1810.1,3.8961]
[1743730865337,3.666,1810.5,1810.2,1.10525]
[1743730865535,2.21988798,1810.4,1810.3,1.1052]
[1743730865737,1.51908798,1810.4,1810.3,1.1052]
[1743730867043,0.00828798,1810.4,1810.3,1.1052]
[1743730867740,0.00828798,1810.4,1810.3,4.313]
[1743730869236,6.16516,1810.9,1810.5,2.76269]
[1743730869436,3.2078,1811.0,1810.8,1.1049]
[1743730869747,4.31258,1811.0,1810.9,1.487]
[1743730870136,5.70688,1811.0,1810.9,1.487]
[1743730870546,1.10492,1810.8,1810.7,1.10493]
[1743730870748,2.59238,1810.9,1810.8,1.1049]
[1743730871441,1.1049,1810.8,1810.7,2.55484]
[1743730871648,2.5924,1810.8,1810.7,2.55484]
[1743730871946,1.4875,1810.8,1810.7,2.55484]
[1743730872646,1.10484,1810.9,1810.8,1.1049]
[1743730872836,1.10484,1810.9,1810.8,2.5548]
[1743730873042,2.59234,1810.9,1810.8,2.5548]
[1743730876343,1.10484,1810.9,1810.8,2.5548]
[1743730878051,1.10484,1810.9,1810.8,1.4499]
[1743730878349,1.10484,1810.9,1810.8,2.5548]
[1743730878851,2.49494,1810.9,1810.8,2.5548]
[1743730880352,2.49494,1810.9,1810.8,1.4499]
[1743730880550,1.10496,1810.7,1810.6,2.51906]
[1743730880750,1.10496,1810.7,1810.6,4.02226]
[1743730880952,2.76256,1810.6,1810.3,1.10518]
[1743730881150,1.1052,1810.4,1810.3,1.5032]
[1743730881450,1.1052,1810.3,1810.2,0.00828798]
[1743730881653,2.5827,1810.3,1810.2,0.00828798]
[1743730882048,2.5827,1810.3,1810.2,1.11355798]
[1743730883556,2.5827,1810.3,1810.2,0.00828798]
[1743730883853,2.5827,1810.3,1810.2,1.11355798]
[1743730884047,1.1052,1810.3,1810.2,2.50125798]
[1743730887059,1.1052,1810.3,1810.2,1.39598798]
[1743730887650,2.5756,1810.3,1810.2,2.50125798]
[1743730887948,2.5756,1810.3,1810.2,1.39598798]
[1743730888156,2.5756,1810.3,1810.2,2.50125798]
[1743730888954,1.1052,1810.3,1810.2,2.50125798]
[1743730889355,5.83509,1810.4,1810.3,1.1052]
[1743730889557,5.83509,1810.4,1810.3,3.2649]
[1743730890157,2.62729,1810.4,1810.3,2.1597]
[1743730891163,2.62729,1810.4,1810.3,1.454]
[1743730891854,1.10514,1810.5,1810.3,1.454]
[1743730892156,1.10488,1810.9,1810.8,1.1049]
[1743730892358,2.52635798,1811.1,1811.0,1.10478]
[1743730892661,1.11305798,1811.1,1811.0,1.10478]
[1743730892860,1.1048,1811.0,1810.9,1.10479]
[1743730893054,1.1048,1811.0,1810.9,2.1268]
[1743730893659,1.1048,1811.0,1810.9,3.23164]
[1743730894056,1.1048,1811.0,1810.9,2.1268]
[1743730894252,2.56104798,1811.1,1811.0,1.10478]
[1743730894457,1.45628798,1811.1,1811.0,2.48928]
[1743730894656,1.11300798,1811.1,1811.0,2.48928]
[1743730897358,0.00828798,1811.1,1811.0,2.48928]
[1743730897558,1.11300798,1811.1,1811.0,2.48928]
[1743730898564,0.00828798,1811.1,1811.0,2.48928]
[1743730899965,1.11300798,1811.1,1811.0,2.48928]
[1743730900154,2.61380798,1811.1,1811.0,2.48928]
[1743730900665,1.50908798,1811.1,1811.0,2.48928]
[1743730901063,2.61380798,1811.1,1811.0,2.48928]
[1743730901964,1.50908798,1811.1,1811.0,2.48928]
[1743730902165,0.00828798,1811.1,1811.0,2.48928]
[1743730907272,0.00828798,1811.1,1811.0,5.69708]
[1743730907768,0.00828798,1811.1,1811.0,2.48928]
[1743730908074,1.10478,1811.0,1810.9,1.84708]
[1743730908278,2.51218,1811.0,1810.9,1.84708]
[1743730908958,2.51224,1811.0,1810.9,1.10484]
[1743730909163,1.10484,1810.9,1810.8,3.27545]
[1743730909465,2.51224,1810.9,1810.8,3.27545]
[1743730909867,1.4074,1810.9,1810.8,3.27545]
[1743730910065,1.4074,1810.9,1810.8,1.10485]
[1743730910266,1.4074,1810.9,1810.8,2.56285]
[1743730910765,2.51224,1810.9,1810.8,1.458]
[1743730910969,2.51224,1810.9,1810.8,1.1049]
[1743730911166,1.1049,1810.8,1810.7,1.80132]
[1743730911371,2.5347,1810.8,1810.7,1.80132]
[1743730911673,1.4298,1810.8,1810.7,1.80132]
[1743730911865,2.5347,1810.8,1810.7,1.80132]
[1743730912175,4.19215,1810.8,1810.5,1.83306]
[1743730912471,1.10507,1810.6,1810.5,1.10506]
[1743730912869,2.53487,1810.6,1810.5,1.10506]
[1743730913270,1.10508,1810.5,1810.4,2.5088]
[1743730913471,2.51478,1810.5,1810.4,2.5088]
[1743730914474,1.4097,1810.5,1810.4,2.5088]
[1743730914778,1.1049,1810.8,1810.6,2.76256]
[1743730914972,1.1049,1810.8,1810.7,1.81016]
[1743730915162,1.1049,1810.8,1810.7,3.31316]
[1743730915567,2.51454,1810.9,1810.8,1.1049]
[1743730915767,2.51454,1810.9,1810.8,1.503]
[1743730916372,1.1049,1810.8,1810.7,1.81011]
[1743730916568,2.6272,1810.8,1810.7,1.81011]
[1743730920182,1.1049,1810.8,1810.7,1.81011]
[1743730920378,1.11305798,1811.1,1811.0,1.10478]
[1743730920678,0.00828798,1811.1,1811.0,1.10478]
[1743730920891,0.00828798,1811.1,1811.0,4.31258]
[1743730921292,0.00828798,1811.1,1811.0,6.51248]
[1743730921990,0.00828798,1811.1,1811.0,10.17748]
[1743730922891,0.00828798,1811.1,1811.0,12.67748]
[1743730924393,1.10446,1811.6,1811.2,2.76163]
[1743730924602,2.49236,1811.6,1811.5,1.10447]
[1743730925495,1.3879,1811.6,1811.5,2.51987]
[1743730925795,3.21608798,1811.7,1811.6,1.10441]
[1743730925999,3.2078,1812.0,1811.9,1.10423]
[1743730926297,5.4188,1812.2,1812.1,1.10411]
[1743730926903,5.83385,1812.2,1812.1,1.10411]
[1743730927197,4.7298,1812.2,1812.0,3.27145]
[1743730927399,5.83389,1812.2,1812.1,1.10411]
[1743730927600,25.82457869,1812.3,1812.2,1.10405]
[1743730928298,28.32457869,1812.3,1811.7,3.9162]
[1743730928491,1.10433,1811.8,1811.6,2.55938]
[1743730928693,1.10444,1811.6,1811.4,3.97798798]
[1743730929000,2.5889,1811.7,1811.6,1.10441]
[1743730929201,1.4845,1811.7,1811.6,1.10441]
[1743730929593,2.58885,1811.7,1811.5,1.10442]
[1743730929791,2.58885,1811.7,1811.5,2.50422]
[1743730930498,1.4845,1811.7,1811.4,3.21608798]
[1743730930700,2.2368,1811.7,1811.4,3.21608798]
[1743730931001,1.10441,1811.6,1811.5,1.10442]
[1743730931202,2.58891,1811.6,1811.5,1.3998]
[1743730932196,2.58891,1811.6,1811.4,1.11277798]
[1743730932893,1.10447,1811.5,1811.4,1.11277798]
[1743730933097,2.59717,1811.5,1811.4,0.00828798]
[1743730933298,1.4927,1811.5,1811.4,1.11281798]
[1743730933500,1.4927,1811.5,1811.4,2.57021798]
[1743730933899,1.10442,1811.6,1811.5,1.10446]
[1743730934102,1.10442,1811.6,1811.5,2.56186]
[1743730934406,6.5572,1811.7,1811.5,2.56186]
[1743730934606,1.4927,1811.7,1811.6,1.10441]
[1743730934903,2.59705,1811.7,1811.6,1.10441]
[1743730935505,2.59705,1811.7,1811.5,2.1601]
[1743730935696,1.10441,1811.6,1811.5,3.26455]
[1743730935892,2.59709,1811.7,1811.6,1.10441]
[1743730936802,1.4927,1811.7,1811.6,1.10441]
[1743730937110,1.10441,1811.6,1811.5,3.26453]
[1743730937404,2.5971,1811.7,1811.5,3.26453]
[1743730937607,2.5971,1811.7,1811.6,1.10441]
[1743730938000,0.7429,1811.8,1811.5,2.1601]
[1743730938001,1.10432,1811.8,1811.7,1.10435]
[1743730938203,1.10435,1811.7,1811.6,1.81048]
[1743730938599,1.10441,1811.6,1811.5,2.1601]
[1743730938801,1.10447,1811.5,1811.4,1.11281798]
[1743730938999,3.2078,1811.7,1811.4,0.00828798]
[1743730939307,2.76061,1811.9,1811.5,1.10442]
[1743730939308,1.10441,1811.6,1811.5,1.10442]
[1743730939510,8.13771,1811.9,1811.4,1.45958798]
[1743730939807,1.10439,1811.7,1811.6,1.1044]
[1743730941109,8.13771,1811.9,1811.4,7.42871798]
[1743730941297,1.10443,1811.6,1811.5,1.10443]
[1743730941498,1.10447,1811.5,1811.4,0.00828798]
[1743730941699,2.56597,1811.5,1811.4,0.00828798]
[1743730942003,2.76135,1811.4,1811.0,3.9612]
[1743730942207,1.10472,1811.1,1811.0,3.30158]
[1743730942408,1.10472,1811.1,1811.0,2.54818]
[1743730943212,1.11299798,1811.2,1811.1,1.10471]
[1743730943409,2.57449798,1811.2,1811.1,1.10471]
[1743730943609,1.46978798,1811.2,1811.0,1.4434]
[1743730943811,2.57448798,1811.2,1811.1,1.10472]
[1743730944112,1.10472,1811.1,1811.0,2.54817]
[1743730944310,1.10478,1811.0,1810.9,0.00828798]
[1743730944611,1.81848,1811.0,1810.9,1.11312798]
[1743730944811,3.22738,1811.0,1810.9,1.11312798]
[1743730945713,1.4089,1811.0,1810.9,2.58352798]
[1743730946011,1.10478,1811.0,1810.9,2.58347798]
[1743730946512,5.72147,1811.1,1811.0,1.10478]
[1743730946811,5.72147,1811.1,1810.9,2.58348798]
[1743730947207,5.72147,1811.1,1811.0,1.3756]
[1743730948713,2.51367,1811.1,1811.0,1.3756]
[1743730949507,0.00828798,1811.2,1811.1,1.10472]
[1743730949910,0.00828798,1811.2,1811.1,6.81252]
[1743730950112,1.10446,1811.6,1811.5,1.10447]
[1743730950517,2.9302,1811.7,1811.3,2.1422]
[1743730950707,1.3912,1811.6,1811.4,2.50488]
[1743730951014,1.3912,1811.6,1811.5,2.50487]
[1743730951317,1.10441,1811.6,1811.5,2.50483]
[1743730951718,1.39948798,1811.7,1811.6,1.10441]
[1743730952012,2.50387798,1811.7,1811.6,1.4004]
[1743730952219,2.50387798,1811.7,1811.6,2.50481]
[1743730952518,2.50387798,1811.7,1811.6,1.4004]
[1743730953317,2.50387798,1811.7,1811.6,2.50481]
[1743730954321,1.39948798,1811.7,1811.6,2.50481]
[1743730954524,0.00828798,1811.7,1811.6,2.50481]
[1743730955421,0.00828798,1811.7,1811.6,3.24771]
[1743730956819,1.11263798,1811.7,1811.6,3.24771]
[1743730957622,0.00828798,1811.7,1811.6,3.24771]
[1743730957822,1.11263798,1811.7,1811.6,3.24771]
[1743730959325,0.00828798,1811.7,1811.6,3.24771]
[1743730960118,1.11263798,1811.7,1811.6,3.24771]
[1743730960524,0.00828798,1811.7,1811.6,3.24771]
[1743730960723,1.11263798,1811.7,1811.6,3.24771]
[1743730962627,0.00828798,1811.7,1811.6,3.24771]
[1743730966124,1.11263798,1811.7,1811.6,3.24771]
[1743730967532,0.00828798,1811.7,1811.6,3.24771]
[1743730967832,1.11263798,1811.7,1811.6,3.24771]
[1743730968129,0.00828798,1811.7,1811.6,3.24771]
[1743730969633,1.11263798,1811.7,1811.6,3.24771]
[1743730970025,0.00828798,1811.7,1811.6,3.24771]
[1743730972232,1.11263798,1811.7,1811.6,3.24771]
[1743730972734,0.00828798,1811.7,1811.6,3.24771]
[1743730973133,1.11263798,1811.7,1811.6,3.24771]
[1743730973733,5.97697798,1811.7,1811.4,1.10449]
[1743730974032,1.10453,1811.4,1811.3,1.84636]
[1743730974227,1.10453,1811.4,1811.3,3.27026]
[1743730974426,1.10453,1811.4,1811.3,1.4239]
[1743730974623,1.10453,1811.4,1811.3,2.52849]
[1743730974835,2.54393,1811.4,1811.3,2.52849]
[1743730975035,1.10459,1811.3,1811.2,1.82811]
[1743730975235,2.54399,1811.3,1811.2,3.30491]
[1743730975536,1.4394,1811.3,1811.2,3.30491]
[1743730976136,2.54399,1811.3,1811.2,3.30491]
[1743730976337,1.4394,1811.3,1811.2,3.30491]
[1743730977339,3.2078,1811.5,1811.4,1.10453]
[1743730977533,1.4032,1811.6,1811.5,1.10447]
[1743730977831,0.00828798,1811.7,1811.6,1.10441]
[1743730978735,0.00828798,1811.7,1811.6,2.47911]
[1743730982741,1.11263798,1811.7,1811.6,1.3747]
[1743730982941,1.10453,1811.4,1811.3,2.52146]
[1743730983241,1.10451,1811.5,1811.4,1.10451]
[1743730983441,1.10453,1811.4,1811.3,2.52146]
[1743730983946,2.5508,1811.5,1811.4,1.10453]
[1743730984143,2.5508,1811.5,1811.4,2.58863]
[1743730984343,2.5508,1811.5,1811.4,1.4841]
[1743730985243,2.5508,1811.5,1811.4,2.58863]
[1743730985545,2.5508,1811.5,1811.4,1.4841]
[1743730986248,2.5508,1811.5,1811.4,2.58863]
[1743730986450,2.5508,1811.5,1811.4,1.4841]
[1743730986635,1.10465,1811.2,1811.1,1.81432]
[1743730986940,1.10472,1811.1,1811.0,1.4781]
[1743730987134,1.10478,1811.0,1810.9,0.00828798]
[1743730987338,1.86698,1811.0,1810.9,0.00828798]
[1743730987739,1.86698,1811.0,1810.9,1.11312798]
[1743730988140,5.07478,1811.0,1810.9,1.11312798]
[1743730988441,7.57478,1811.0,1810.9,0.00828798]
[1743730990138,5.07478,1811.0,1810.9,0.00828798]
[1743730990339,7.57478,1811.0,1810.9,0.00828798]
[1743730992337,1.10508,1810.5,1810.4,0.7096]
[1743730992641,1.10514,1810.4,1810.3,2.0927]
[1743730992835,1.10514,1810.4,1810.3,3.1979]
[1743730993047,1.1051,1810.5,1810.4,1.10514]
[1743730993343,1.10507,1810.6,1810.5,1.10506]
[1743730993544,1.10511,1810.5,1810.4,1.10511]
[1743730993745,1.11335798,1810.6,1810.5,1.10508]
[1743730993942,0.00828798,1810.6,1810.5,1.10508]
[1743730994346,1.11330798,1810.6,1810.5,1.10508]
[1743730994642,1.11330798,1810.6,1810.5,1.83548]
[1743730994840,0.00828798,1810.6,1810.5,1.83548]
[1743730996738,3.664,1811.0,1810.7,1.1049]
[1743730996948,1.10485,1810.9,1810.8,0.7276]
[1743730997449,1.10462,1811.3,1810.9,2.7621]
[1743730997748,1.4805,1811.5,1811.0,4.4246]
[1743730997944,2.58502,1811.5,1811.3,1.10455]
[1743730998146,0.00828798,1811.4,1811.3,1.10455]
[1743730998551,0.00828798,1811.4,1811.3,1.81555]
[1743730998750,1.11281798,1811.4,1811.3,1.81555]
[1743730998952,0.00828798,1811.4,1811.3,1.81555]
[1743731002655,0.00828798,1811.4,1811.3,5.47855]
[1743731002853,1.10429,1811.8,1811.5,2.76107]
[1743731003048,1.10429,1811.8,1811.7,1.10433]
[1743731003655,2.54688,1811.9,1811.8,1.10429]
[1743731004456,1.1043,1811.8,1811.7,1.10435]
[1743731004754,2.5469,1811.8,1811.7,1.10435]
[1743731005659,1.10452,1811.5,1811.4,1.10452]
[1743731005951,1.10453,1811.4,1811.3,0.711]
[1743731006257,2.55033,1811.4,1811.3,1.81559]
[1743731006959,1.10459,1811.3,1811.2,1.80459798]
[1743731007161,2.55039,1811.3,1811.2,1.80459798]
[1743731008146,2.55039,1811.3,1811.2,0.69998798]
[1743731008849,1.4458,1811.3,1811.2,1.80463798]
[1743731009058,2.55039,1811.3,1811.2,1.80463798]
[1743731009356,2.55039,1811.3,1811.2,0.69998798]
[1743731010358,2.55039,1811.3,1811.2,0.00828798]
[1743731011653,2.55039,1811.3,1811.2,1.48528798]
[1743731012862,2.55039,1811.3,1811.2,2.58993798]
[1743731013861,2.55039,1811.3,1811.2,1.48528798]
[1743731014165,2.55039,1811.3,1811.2,2.58993798]
[1743731014761,2.55039,1811.3,1811.2,1.48528798]
[1743731015064,1.10493,1810.8,1810.7,1.10489]
[1743731015362,1.10489,1810.9,1810.8,1.10485]
[1743731015564,1.10481,1811.0,1810.9,1.10478]
[1743731016265,1.10481,1811.0,1810.9,2.61598]
[1743731017763,6.17974798,1811.1,1811.0,1.10478]
[1743731017958,6.17974798,1811.1,1811.0,2.54118]
[1743731018262,0.00828798,1811.1,1811.0,2.54118]
[1743731019163,1.11300798,1811.1,1811.0,2.54118]
[1743731020166,1.11300798,1811.1,1811.0,1.4364]
[1743731020963,1.10478,1811.0,1810.9,1.4312]
[1743731021557,1.10478,1811.0,1810.9,2.8707]
[1743731022263,1.10478,1811.0,1810.9,3.97554]
[1743731022763,2.54554798,1811.1,1811.0,1.10478]
[1743731022965,2.54554798,1811.1,1811.0,2.54428]
[1743731023464,2.54554798,1811.1,1811.0,1.4395]
[1743731024869,2.54554798,1811.1,1811.0,2.54428]
[1743731026363,2.54554798,1811.1,1811.0,1.4395]
[1743731026565,2.54554798,1811.1,1811.0,2.54428]
[1743731027766,0.00828798,1811.1,1811.0,2.54428]
[1743731028465,1.11300798,1811.1,1811.0,2.54428]
[1743731029764,2.59380798,1811.1,1811.0,2.54428]
[1743731030164,1.11300798,1811.1,1811.0,2.54428]
[1743731030473,0.00828798,1811.1,1811.0,2.54428]
[1743731030670,1.10444,1811.6,1811.5,1.10439]
[1743731030967,5.96865,1811.8,1811.3,2.76135]
[1743731030968,2.5852,1811.7,1811.6,1.10441]
[1743731031169,1.1044,1811.7,1811.6,1.10441]
[1743731031573,1.10441,1811.6,1811.5,2.60002]
[1743731031872,1.10441,1811.6,1811.5,2.60007]
[1743731032964,1.10441,1811.6,1811.5,1.4956]
[1743731033371,1.10441,1811.6,1811.5,2.60007]
[1743731034872,1.1044,1811.7,1811.6,1.10441]
[1743731035064,1.1044,1811.7,1811.6,1.4009]
[1743731036765,1.1044,1811.7,1811.6,2.50531]
[1743731037364,1.1044,1811.7,1811.6,1.4009]
[1743731037571,2.548,1811.7,1811.6,1.4009]
[1743731037973,1.4436,1811.7,1811.6,2.50531]
[1743731038280,0.00828798,1811.8,1811.7,1.10435]
[1743731039478,1.11257798,1811.8,1811.7,1.10435]
[1743731039674,2.54987798,1811.8,1811.7,1.10435]
[1743731040379,1.10435,1811.7,1811.6,2.50527]
[1743731040579,2.54165,1811.7,1811.6,2.50527]
[1743731041677,1.4373,1811.7,1811.6,2.50527]
[1743731042280,2.54165,1811.7,1811.6,2.50527]
[1743731042880,1.4373,1811.7,1811.6,2.50527]
[1743731043182,0.00828798,1811.8,1811.7,1.10435]
[1743731043383,0.00828798,1811.8,1811.7,2.53535]
[1743731044881,1.11257798,1811.8,1811.7,2.53535]
[1743731045378,1.11257798,1811.8,1811.7,1.431]
[1743731045681,1.10444,1811.6,1811.5,1.10443]
[1743731045872,1.10444,1811.6,1811.5,2.52683]
[1743731046981,2.58161,1811.7,1811.6,1.10441]
[1743731052087,1.4772,1811.7,1811.6,1.10441]
[1743731052277,2.58155,1811.7,1811.6,1.10441]
[1743731053186,2.58155,1811.7,1811.6,2.60711]
[1743731054887,0.00828798,1811.8,1811.7,1.10435]
[1743731055080,0.00828798,1811.8,1811.7,3.21305]
[1743731056087,1.11257798,1811.8,1811.7,3.21305]
[1743731056592,0.00828798,1811.8,1811.7,3.21305]
[1743731057693,1.11257798,1811.8,1811.7,3.21305]
[1743731057894,1.11257798,1811.8,1811.7,1.10435]
[1743731058296,2.54607798,1811.8,1811.7,1.10435]
[1743731059090,2.54607798,1811.8,1811.7,2.55845]
[1743731060191,1.11257798,1811.8,1811.7,2.55845]
[1743731061196,0.00828798,1811.8,1811.7,2.55845]
[1743731062701,1.11257798,1811.8,1811.7,2.55845]
[1743731063701,0.00828798,1811.8,1811.7,2.55845]
[1743731064002,1.11257798,1811.8,1811.7,2.55845]
[1743731064390,1.11257798,1811.8,1811.7,1.4541]
[1743731064590,1.10447,1811.5,1811.4,1.81379]
[1743731064797,1.10447,1811.5,1811.4,2.2237]
[1743731065100,1.10447,1811.5,1811.4,3.32823]
[1743731065400,2.62877,1811.5,1811.4,3.32823]
[1743731066096,2.62877,1811.5,1811.4,2.2237]
[1743731066292,2.62877,1811.5,1811.4,3.32823]
[1743731067196,2.62877,1811.5,1811.4,2.2237]
[1743731067401,2.62877,1811.5,1811.4,3.32823]
[1743731068809,2.62877,1811.5,1811.4,2.2237]
[1743731069307,1.10484,1811.0,1810.9,1.10482]
[1743731069499,7.6853,1811.5,1811.0,1.10476]
[1743731069500,1.10477,1811.1,1811.0,1.10476]
[1743731069703,1.1047,1811.2,1811.1,1.10469]
[1743731069904,1.1047,1811.2,1810.9,1.4949]
[1743731069905,2.57814,1811.3,1811.2,1.10465]
[1743731070407,1.10464,1811.3,1811.2,1.80225]
[1743731070911,1.10457,1811.4,1811.3,1.10457]
[1743731071112,1.10457,1811.4,1811.3,2.59947]
[1743731071411,1.10457,1811.4,1811.3,3.34157]